bitfinex/quotes_BTCUSD_20240611
["timestamp","ask_amount","ask_price","bid_price","bid_amount"]
[1718129720706,0.2087,66812.0,66811.0,0.32]
[1718129720910,0.3087,66812.0,66811.0,0.32]
[1718129721403,0.249673,66812.0,66811.0,0.42424931]
[1718129721836,0.249673,66812.0,66811.0,0.32424931]
[1718129722055,0.249673,66812.0,66811.0,0.33324931]
[1718129722483,0.249673,66812.0,66811.0,0.31324931]
[1718129723332,0.249673,66812.0,66811.0,0.33324931]
[1718129723541,0.249673,66812.0,66811.0,0.34624931]
[1718129724199,0.299343,66813.0,66812.0,0.3]
[1718129724400,0.472014,66813.0,66812.0,0.3]
[1718129724610,0.472014,66813.0,66812.0,0.3242757]
[1718129725453,0.172671,66813.0,66812.0,0.3312757]
[1718129726047,0.149671,66813.0,66812.0,0.3312757]
[1718129726271,0.058371,66821.0,66820.0,0.09275802]
[1718129726470,0.380678,66821.0,66820.0,0.09275802]
[1718129726931,0.380678,66821.0,66820.0,0.09703372]
[1718129727343,0.530331,66821.0,66820.0,0.09703372]
[1718129727772,0.67665093,66821.0,66820.0,0.09803372]
[1718129728407,0.77665093,66821.0,66820.0,0.09803372]
[1718129728795,0.77465093,66821.0,66820.0,0.09803372]
[1718129729022,0.77865093,66821.0,66820.0,0.09803372]
[1718129729933,0.77865093,66821.0,66820.0,0.09703372]
[1718129731200,0.77465093,66821.0,66820.0,0.09703372]
[1718129731637,0.77865093,66821.0,66820.0,0.09703372]
[1718129732233,0.37865093,66821.0,66820.0,0.09703372]
[1718129733012,0.67795793,66821.0,66820.0,0.09703372]
[1718129733435,0.67795793,66821.0,66820.0,0.31703372]
[1718129733652,0.533638,66821.0,66820.0,0.31703372]
[1718129734261,0.133638,66821.0,66820.0,0.31703372]
[1718129734920,0.133638,66821.0,66820.0,0.31903372]
[1718129735355,0.433945,66821.0,66820.0,0.29903372]
[1718129735569,0.433945,66821.0,66820.0,0.09903372]
[1718129736444,0.15149002,66821.0,66820.0,0.0062757]
[1718129736666,0.485322,66829.0,66826.0,1.2151]
[1718129736667,0.00855,66829.0,66826.0,1.2151]
[1718129736883,0.00855,66829.0,66826.0,1.33926571]
[1718129737099,0.00855,66829.0,66826.0,1.34351175]
[1718129737535,0.15819,66827.0,66826.0,0.32424604]
[1718129737956,0.15819,66827.0,66826.0,0.32924604]
[1718129738439,0.15819,66827.0,66826.0,0.32424604]
[1718129738672,0.15819,66827.0,66826.0,0.34724604]
[1718129739357,0.00855,66827.0,66826.0,0.44724604]
[1718129740473,0.00855,66827.0,66826.0,0.42424604]
[1718129740687,0.00855,66827.0,66826.0,0.43324604]
[1718129741099,0.00855,66827.0,66826.0,0.44624604]
[1718129741304,0.00855,66827.0,66826.0,0.43424604]
[1718129741525,0.00855,66827.0,66826.0,0.44824604]
[1718129741728,0.00855,66827.0,66826.0,0.45224604]
[1718129741944,0.00855,66827.0,66826.0,0.43824604]
[1718129742151,0.00855,66827.0,66826.0,0.42424604]
[1718129742372,0.00855,66827.0,66826.0,0.43824604]
[1718129742585,0.00855,66827.0,66826.0,0.45224604]
[1718129743035,0.00855,66827.0,66826.0,0.78274604]
[1718129743486,0.00855,66827.0,66826.0,1.26064604]
[1718129743930,0.00855,66827.0,66826.0,1.24664604]
[1718129744143,0.00855,66827.0,66826.0,1.23264604]
[1718129744364,0.00855,66827.0,66826.0,1.49398604]
[1718129744586,0.00855,66827.0,66826.0,1.63214538]
[1718129744822,0.00855,66827.0,66826.0,1.60414538]
[1718129745050,0.00855,66827.0,66826.0,1.61814538]
[1718129745274,0.00855,66827.0,66826.0,2.12610731]
[1718129745490,0.00855,66835.0,66834.0,0.43]
[1718129745739,0.00855,66835.0,66834.0,1.84561989]
[1718129746205,0.00855,66835.0,66834.0,2.32343192]
[1718129746436,0.158118,66859.0,66858.0,0.31275802]
[1718129746890,0.158118,66859.0,66858.0,0.31680706]
[1718129747549,0.00855,66859.0,66858.0,0.41680706]
[1718129747781,0.00855,66859.0,66858.0,0.51680706]
[1718129747973,0.00855,66859.0,66858.0,0.51880706]
[1718129748388,0.00855,66859.0,66858.0,0.51680706]
[1718129748829,0.00855,66859.0,66858.0,0.51980706]
[1718129749045,0.00855,66859.0,66858.0,0.52580706]
[1718129749254,0.00855,66859.0,66858.0,0.51980706]
[1718129749666,0.00855,66859.0,66858.0,0.53380706]
[1718129750798,0.00855,66859.0,66858.0,0.41080706]
[1718129751016,0.10855,66859.0,66858.0,0.53080706]
[1718129751251,0.10855,66859.0,66858.0,0.42680706]
[1718129751471,0.258118,66859.0,66858.0,0.44080706]
[1718129751683,0.258118,66859.0,66858.0,0.21080706]
[1718129751899,0.258118,66859.0,66858.0,0.43080706]
[1718129752110,0.258118,66859.0,66858.0,0.44480706]
[1718129752559,0.258118,66859.0,66858.0,0.41680706]
[1718129752781,0.258118,66859.0,66858.0,0.44480706]
[1718129753207,0.258118,66859.0,66858.0,0.43080706]
[1718129753421,0.158118,66859.0,66858.0,0.41080706]
[1718129753684,0.149568,66859.0,66858.0,0.21080706]
[1718129753914,0.00855,66860.0,66859.0,0.32]
[1718129754182,0.00855,66860.0,66859.0,0.42]
[1718129754395,0.00855,66860.0,66859.0,0.10396258]
[1718129754396,0.158116,66860.0,66859.0,0.10396258]
[1718129754608,0.158116,66860.0,66859.0,0.30396258]
[1718129755248,0.166616,66860.0,66859.0,0.10396258]
[1718129755678,0.266616,66860.0,66859.0,0.11796258]
[1718129755884,0.266616,66860.0,66859.0,0.13196258]
[1718129756090,0.266616,66860.0,66859.0,0.11796258]
[1718129756299,0.266616,66860.0,66859.0,0.31796258]
[1718129756520,0.266616,66860.0,66859.0,0.32796258]
[1718129756713,0.266616,66860.0,66859.0,0.31796258]
[1718129757148,0.266616,66860.0,66859.0,0.10896258]
[1718129757580,0.266616,66860.0,66859.0,0.11596258]
[1718129757996,0.41093593,66860.0,66859.0,0.01596258]
[1718129758215,0.77513552,66860.0,66859.0,0.00896258]
[1718129758651,0.77513552,66860.0,66859.0,0.01096258]
[1718129759053,0.73306793,66860.0,66859.0,0.00896258]
[1718129759455,0.73306793,66860.0,66859.0,0.00396258]
[1718129759917,0.73306793,66860.0,66859.0,0.00896258]
[1718129760131,0.73306793,66860.0,66859.0,0.00396258]
[1718129761333,0.10855,66860.0,66859.0,1.19562254]
[1718129761558,0.00855,66860.0,66859.0,0.27712254]
[1718129761778,0.10855,66860.0,66859.0,0.27712254]
[1718129762137,0.258116,66860.0,66859.0,0.27612254]
[1718129762759,0.258116,66860.0,66859.0,0.30712254]
[1718129762964,0.258116,66860.0,66859.0,0.29612254]
[1718129763178,0.258116,66860.0,66859.0,0.39612254]
[1718129763404,0.00855,66860.0,66859.0,1.30662254]
[1718129763635,0.00855,66860.0,66859.0,1.63062254]
[1718129764078,0.00855,66860.0,66859.0,1.87078247]
[1718129764535,0.00855,66860.0,66859.0,1.87878247]
[1718129765044,0.00855,66860.0,66859.0,1.87078247]
[1718129765271,0.00854,66862.0,66861.0,0.826904]
[1718129765502,0.00854,66862.0,66861.0,1.76212393]
[1718129765726,0.00854,66862.0,66861.0,1.61608415]
[1718129766424,0.00854,66862.0,66861.0,1.76564815]
[1718129766891,0.00854,66862.0,66861.0,1.77964815]
[1718129767108,0.00854,66862.0,66861.0,1.90374452]
[1718129767566,0.00854,66862.0,66861.0,1.88974452]
[1718129768234,0.00854,66862.0,66861.0,1.90374452]
[1718129769177,0.25808,66876.0,66861.0,1.90374452]
[1718129769178,0.10855,66876.0,66875.0,0.19275802]
[1718129769413,0.00855,66876.0,66875.0,0.26491798]
[1718129769632,0.00855,66876.0,66875.0,0.2684251]
[1718129770073,0.15808,66876.0,66875.0,0.19626514]
[1718129770287,0.25808,66876.0,66875.0,0.19626514]
[1718129770524,0.25808,66876.0,66875.0,0.09626514]
[1718129770751,0.10855,66876.0,66875.0,0.00350712]
[1718129770977,0.00855,66876.0,66875.0,1.47098507]
[1718129771453,0.00855,66876.0,66875.0,1.60206091]
[1718129771675,0.00855,66876.0,66875.0,1.83940091]
[1718129771910,0.00855,66876.0,66875.0,1.99193291]
[1718129772355,0.00855,66876.0,66875.0,2.01593291]
[1718129772577,0.00855,66876.0,66875.0,2.00593291]
[1718129772821,0.00855,66876.0,66875.0,1.87040091]
[1718129773284,0.00855,66876.0,66875.0,2.07039247]
[1718129774393,0.00855,66876.0,66875.0,2.28195476]
[1718129775285,0.00855,66876.0,66875.0,1.85639247]
[1718129775494,0.00855,66876.0,66875.0,1.84239247]
[1718129775713,0.00855,66876.0,66875.0,0.66833254]
[1718129776162,0.00855,66876.0,66875.0,0.54426514]
[1718129776389,0.00855,66876.0,66875.0,0.65434113]
[1718129776857,0.00855,66876.0,66875.0,0.66834113]
[1718129777095,0.00855,66876.0,66875.0,0.65434106]
[1718129777324,0.00855,66876.0,66875.0,1.04200099]
[1718129777544,0.00855,66876.0,66875.0,1.85610099]
[1718129777762,0.00855,66876.0,66875.0,2.20563299]
[1718129778236,0.00855,66876.0,66875.0,2.19163299]
[1718129778458,0.00855,66876.0,66875.0,2.20563299]
[1718129778691,0.00855,66876.0,66875.0,2.21963299]
[1718129778925,0.00855,66876.0,66875.0,2.20563299]
[1718129779156,0.00855,66876.0,66875.0,1.99163299]
[1718129779374,0.00855,66876.0,66875.0,2.01963299]
[1718129779614,0.00855,66876.0,66875.0,2.00563299]
[1718129779838,0.00855,66876.0,66875.0,2.01963299]
[1718129780283,0.00855,66876.0,66875.0,2.00563299]
[1718129780732,0.00855,66876.0,66875.0,1.99161751]
[1718129780947,0.00855,66876.0,66875.0,2.00561751]
[1718129781627,0.00855,66876.0,66875.0,1.87008551]
[1718129781859,0.00855,66876.0,66875.0,1.86008551]
[1718129782088,0.00855,66876.0,66875.0,1.84608551]
[1718129782308,0.00855,66876.0,66875.0,1.83208551]
[1718129782753,0.00855,66876.0,66875.0,1.84208551]
[1718129782973,0.00855,66876.0,66875.0,1.85608551]
[1718129783187,0.00855,66876.0,66875.0,1.84608551]
[1718129783403,0.00855,66876.0,66875.0,1.70176558]
[1718129783621,0.00855,66876.0,66875.0,1.71576558]
[1718129783851,0.00855,66876.0,66875.0,0.66832558]
[1718129784085,0.15808,66876.0,66875.0,0.66832558]
[1718129784301,0.15808,66876.0,66875.0,0.53026514]
[1718129784488,0.00855,66876.0,66875.0,0.54426514]
[1718129784789,0.00855,66876.0,66875.0,0.66833584]
[1718129785018,0.00855,66876.0,66875.0,0.51626514]
[1718129785251,0.00855,66876.0,66875.0,0.93192507]
[1718129785482,0.00855,66876.0,66875.0,1.85289708]
[1718129785929,0.00855,66876.0,66875.0,1.74282507]
[1718129786605,0.00855,66876.0,66875.0,1.87835707]
[1718129786824,0.00855,66876.0,66875.0,1.71882507]
[1718129787053,0.00855,66876.0,66875.0,0.79160514]
[1718129787268,0.00855,66876.0,66875.0,0.51026514]
[1718129787481,0.15808,66876.0,66875.0,0.53026514]
[1718129787699,0.15808,66876.0,66875.0,0.54426514]
[1718129787927,0.15808,66876.0,66875.0,0.52426514]
[1718129788174,0.15808,66876.0,66875.0,0.51626514]
[1718129788623,0.15808,66876.0,66875.0,0.54426514]
[1718129788842,0.15808,66876.0,66875.0,0.53026514]
[1718129789293,0.15808,66876.0,66875.0,0.54426514]
[1718129789525,0.15808,66876.0,66875.0,0.52426514]
[1718129790398,0.15808,66876.0,66875.0,0.42426514]
[1718129790602,0.25808,66876.0,66875.0,0.22426514]
[1718129790999,0.25808,66876.0,66875.0,0.54426514]
[1718129791260,0.00855,66876.0,66875.0,1.11342507]
[1718129791484,0.00855,66876.0,66875.0,1.73701191]
[1718129791707,0.00855,66876.0,66875.0,1.74701191]
[1718129792006,0.00855,66876.0,66875.0,1.06001191]
[1718129792230,0.00855,66876.0,66875.0,0.66835198]
[1718129792488,0.00855,66876.0,66875.0,0.53026514]
[1718129792934,0.00855,66876.0,66875.0,0.54426514]
[1718129793157,0.00855,66876.0,66875.0,0.53026514]
[1718129793372,0.00855,66876.0,66875.0,0.54426514]
[1718129793600,0.00855,66876.0,66875.0,0.53026514]
[1718129793817,0.00855,66876.0,66875.0,0.54426514]
[1718129794270,0.00855,66876.0,66875.0,0.53026514]
[1718129794933,0.00855,66876.0,66875.0,0.65434671]
[1718129795147,0.00855,66876.0,66875.0,0.66834671]
[1718129796282,0.00855,66876.0,66875.0,1.45484671]
[1718129796507,0.00855,66876.0,66875.0,1.84650664]
[1718129797147,0.00855,66876.0,66875.0,1.83250664]
[1718129797413,0.00855,66876.0,66875.0,1.70842507]
[1718129797636,0.00855,66876.0,66875.0,1.84649666]
[1718129797817,0.00855,66876.0,66875.0,1.83249666]
[1718129798045,0.00855,66882.0,66881.0,0.826859]
[1718129798257,0.00855,66882.0,66881.0,2.06255052]
[1718129798480,0.00855,66882.0,66881.0,2.21655641]
[1718129798715,0.00855,66882.0,66881.0,1.9164334]
[1718129799359,0.00855,66882.0,66881.0,1.9304334]
[1718129799843,0.00855,66882.0,66881.0,2.0799524]
[1718129800555,0.00855,66882.0,66881.0,2.3799524]
[1718129800774,0.00855,66882.0,66881.0,2.69007529]
[1718129801672,0.00855,66882.0,66881.0,2.3939524]
[1718129801890,0.00855,66882.0,66881.0,2.70405156]
[1718129802508,0.00855,66882.0,66881.0,2.70402375]
[1718129802666,0.00855,66882.0,66881.0,2.50402375]
[1718129802873,0.00855,66882.0,66881.0,2.70402375]
[1718129803532,0.00855,66882.0,66881.0,2.70402352]
[1718129803971,0.00855,66882.0,66881.0,2.39392436]
[1718129804384,0.00855,66882.0,66881.0,2.37992436]
[1718129805044,0.00855,66882.0,66881.0,2.09392436]
[1718129805253,0.00855,66882.0,66881.0,2.07992436]
[1718129805467,0.00855,66882.0,66881.0,2.19392436]
[1718129805666,0.00855,66882.0,66881.0,2.09392436]
[1718129806528,0.00855,66882.0,66881.0,2.29392436]
[1718129806959,0.00855,66882.0,66881.0,2.27992436]
[1718129807183,0.00855,66882.0,66881.0,2.29392436]
[1718129807438,0.00855,66882.0,66881.0,2.07992436]
[1718129807683,0.00855,66882.0,66881.0,2.06592436]
[1718129807918,0.00855,66882.0,66881.0,1.93040536]
[1718129808360,0.00855,66882.0,66881.0,1.94440536]
[1718129808580,0.00855,66882.0,66881.0,1.91640536]
[1718129809015,0.00855,66882.0,66881.0,1.94440536]
[1718129809683,0.00855,66882.0,66881.0,2.09392436]
[1718129809923,0.00036099,66886.0,66881.0,2.09392436]
[1718129809924,0.04466694,66917.0,66900.0,1.21175802]
[1718129810144,0.14963142,66912.0,66901.0,1.07729757]
[1718129810358,0.00018042,66912.0,66901.0,1.18856655]
[1718129810583,0.0256,66908.0,66901.0,0.88705138]
[1718129811022,0.0256,66908.0,66901.0,0.63971138]
[1718129811267,0.00018042,66912.0,66901.0,0.91705138]
[1718129811491,0.00018042,66912.0,66901.0,0.93105138]
[1718129811728,0.1626735,66910.0,66901.0,0.75355138]
[1718129811948,0.0132185,66910.0,66901.0,0.58523145]
[1718129812156,0.0256,66908.0,66901.0,0.75673145]
[1718129812359,0.0256,66908.0,66901.0,0.74273145]
[1718129812797,0.149463,66906.0,66901.0,0.74273145]
[1718129813012,0.149463,66906.0,66901.0,0.58523145]
[1718129813221,0.0256,66908.0,66901.0,0.49539145]
[1718129813222,0.158022,66902.0,66901.0,0.49539145]
[1718129813433,0.158022,66902.0,66901.0,0.50839145]
[1718129813649,0.158022,66902.0,66901.0,0.28839145]
[1718129813874,0.258022,66902.0,66901.0,0.30239145]
[1718129814092,0.258022,66902.0,66901.0,0.27539145]
[1718129814298,0.258022,66902.0,66901.0,0.28939145]
[1718129814515,0.258022,66902.0,66901.0,0.52339145]
[1718129814967,0.10855,66902.0,66901.0,0.50939145]
[1718129815176,0.00855,66902.0,66901.0,0.50539145]
[1718129815402,0.00855,66902.0,66901.0,0.20598951]
[1718129815403,0.158022,66902.0,66901.0,0.20598951]
[1718129815636,0.258022,66902.0,66901.0,0.21998951]
[1718129816485,0.283622,66902.0,66901.0,0.20998951]
[1718129816689,0.283622,66902.0,66901.0,0.01723149]
[1718129816920,0.582566,66902.0,66901.0,0.13123149]
[1718129817130,0.582566,66902.0,66901.0,0.03123149]
[1718129817131,0.77275861,66902.0,66901.0,0.03123149]
[1718129817360,1.01466761,66902.0,66901.0,0.03123149]
[1718129817574,1.01466761,66902.0,66901.0,0.028]
[1718129817779,1.05933455,66902.0,66901.0,0.014]
[1718129817992,1.05933455,66902.0,66888.0,0.1]
[1718129817993,0.0256,66890.0,66888.0,0.1]
[1718129818216,0.149505,66887.0,66886.0,0.1]
[1718129818430,0.249505,66887.0,66886.0,0.1]
[1718129819505,0.149508,66886.0,66885.0,0.1]
[1718129819731,0.249508,66886.0,66885.0,0.1]
[1718129820154,0.249508,66886.0,66885.0,0.42]
[1718129820869,0.101,66886.0,66885.0,0.42]
[1718129821122,0.46961188,66902.0,66900.0,0.09275802]
[1718129821123,0.14431993,66902.0,66900.0,0.09275802]
[1718129821356,0.149476,66901.0,66900.0,0.09275802]
[1718129822223,0.149476,66901.0,66900.0,0.51275802]
[1718129822523,0.001,66902.0,66901.0,0.42]
[1718129822730,0.00185,66902.0,66901.0,0.42]
[1718129822945,0.00185,66902.0,66901.0,0.49215996]
[1718129823391,0.00185,66902.0,66901.0,0.50215996]
[1718129823606,0.00085,66902.0,66901.0,0.50215996]
[1718129823825,0.00085,66902.0,66901.0,0.89381989]
[1718129824032,0.00085,66902.0,66901.0,0.89685205]
[1718129824666,0.00185,66902.0,66901.0,0.88885205]
[1718129824886,0.00085,66902.0,66901.0,0.50919212]
[1718129825322,0.00085,66902.0,66901.0,0.51119212]
[1718129825323,0.00185,66902.0,66901.0,0.51119212]
[1718129825547,0.00085,66902.0,66901.0,0.50919212]
[1718129826236,0.00085,66902.0,66901.0,0.49519212]
[1718129826447,0.00085,66902.0,66901.0,0.50919212]
[1718129826897,0.00185,66902.0,66901.0,0.50919212]
[1718129827119,0.00185,66902.0,66901.0,0.48919212]
[1718129827338,0.150322,66902.0,66901.0,0.11703216]
[1718129827562,0.250322,66902.0,66901.0,0.11703216]
[1718129827789,0.251322,66902.0,66901.0,0.11703216]
[1718129827995,0.251322,66902.0,66901.0,0.10303216]
[1718129827996,0.250322,66902.0,66901.0,0.10303216]
[1718129828224,0.251322,66902.0,66901.0,0.12903216]
[1718129828441,0.251322,66902.0,66901.0,0.32903216]
[1718129828668,0.251322,66902.0,66901.0,0.31503216]
[1718129828898,0.252322,66902.0,66901.0,0.44403216]
[1718129829327,0.252322,66902.0,66901.0,0.42403216]
[1718129829548,0.252322,66902.0,66901.0,0.41203216]
[1718129829769,0.252322,66902.0,66901.0,0.41903216]
[1718129830698,0.252322,66902.0,66901.0,0.21903216]
[1718129830914,0.252322,66902.0,66901.0,0.41903216]
[1718129831132,0.252322,66902.0,66901.0,0.43903216]
[1718129831369,0.252322,66902.0,66901.0,0.11903216]
[1718129831583,0.252322,66902.0,66901.0,0.19119212]
[1718129831796,0.252322,66902.0,66901.0,0.39119212]
[1718129833242,0.252322,66902.0,66901.0,0.41119212]
[1718129834274,0.252322,66902.0,66901.0,0.39119212]
[1718129834712,0.252322,66902.0,66901.0,0.19119212]
[1718129834912,0.252322,66902.0,66901.0,0.39119212]
[1718129835563,0.252322,66902.0,66901.0,0.19119212]
[1718129837799,0.2775542,66902.0,66901.0,0.19119212]
[1718129838678,0.252322,66902.0,66901.0,0.19119212]
[1718129839372,0.252322,66902.0,66901.0,0.39119212]
[1718129840064,0.252322,66902.0,66901.0,0.19119212]
[1718129840796,0.2521421,66902.0,66901.0,0.19119212]
[1718129841225,0.2471421,66902.0,66901.0,0.19119212]
[1718129841920,0.39146203,66902.0,66901.0,0.11903216]
[1718129842113,1.01235003,66902.0,66901.0,0.00093216]
[1718129842308,0.149496,66891.0,66890.0,0.1]
[1718129842734,0.249496,66891.0,66890.0,0.1]
[1718129843111,0.149501,66889.0,66888.0,0.5793]
[1718129843324,0.249501,66889.0,66888.0,0.5793]
[1718129844317,0.249501,66889.0,66888.0,0.5823]
[1718129845615,0.249501,66889.0,66888.0,0.5843]
[1718129845904,0.249501,66889.0,66888.0,0.002]
[1718129845905,1.01677503,66889.0,66888.0,0.002]
[1718129846122,0.149505,66887.0,66886.0,0.000935]
[1718129846309,0.548516,66887.0,66886.0,0.19369302]
[1718129847028,0.249505,66887.0,66886.0,0.51369302]
[1718129847252,0.001,66889.0,66886.0,0.51369302]
[1718129847253,0.001,66889.0,66888.0,0.423]
[1718129847478,0.149496,66892.0,66891.0,0.32]
[1718129847711,0.04474432,66909.0,66904.0,0.09275802]
[1718129847969,0.04474432,66909.0,66907.0,0.07215996]
[1718129847970,0.149458,66908.0,66907.0,0.07215996]
[1718129848194,0.391019,66908.0,66907.0,0.07215996]
[1718129848426,0.689936,66908.0,66907.0,0.07215996]
[1718129848658,0.149458,66908.0,66907.0,0.27215996]
[1718129849365,0.149458,66908.0,66907.0,0.29215996]
[1718129849822,0.149458,66908.0,66907.0,0.07215996]
[1718129850036,0.149458,66908.0,66907.0,0.27215996]
[1718129850262,0.249458,66908.0,66907.0,0.27215996]
[1718129850488,0.263458,66908.0,66907.0,0.27515996]
[1718129850719,0.263458,66908.0,66907.0,0.29415996]
[1718129851177,0.263458,66908.0,66907.0,0.29715996]
[1718129851403,0.249458,66908.0,66907.0,0.39415996]
[1718129851622,0.249458,66908.0,66907.0,0.39815996]
[1718129852086,0.249458,66908.0,66907.0,0.49215996]
[1718129852307,0.249458,66908.0,66907.0,0.39515996]
[1718129852547,0.249458,66908.0,66907.0,0.96415996]
[1718129853016,0.249458,66908.0,66907.0,0.96315996]
[1718129853223,0.249458,66908.0,66907.0,0.96615996]
[1718129853641,0.249458,66908.0,66907.0,0.96315996]
[1718129853849,0.249458,66908.0,66907.0,0.96015996]
[1718129854070,0.150458,66908.0,66907.0,0.97115996]
[1718129854759,0.150458,66908.0,66907.0,0.96815996]
[1718129855010,0.151458,66908.0,66907.0,0.97815996]
[1718129855262,0.251308,66908.0,66907.0,0.96815996]
[1718129855509,0.250308,66908.0,66907.0,0.96015996]
[1718129855740,0.251308,66908.0,66907.0,0.94915996]
[1718129856409,0.252308,66908.0,66907.0,0.97915996]
[1718129856877,0.251308,66908.0,66907.0,0.96915996]
[1718129857080,0.252308,66908.0,66907.0,0.97715996]
[1718129857946,0.252308,66908.0,66907.0,0.95715996]
[1718129858882,0.251308,66908.0,66907.0,0.96915996]
[1718129859405,0.252308,66908.0,66907.0,0.97515996]
[1718129860133,0.252308,66908.0,66907.0,0.96615996]
[1718129860134,0.251308,66908.0,66907.0,0.96615996]
[1718129860388,0.00285,66908.0,66907.0,1.14165996]
[1718129860593,0.00285,66908.0,66907.0,1.69401989]
[1718129860837,0.00285,66908.0,66907.0,1.87151989]
[1718129861044,0.00285,66908.0,66907.0,1.88151989]
[1718129861704,0.00185,66908.0,66907.0,1.87551989]
[1718129861908,0.00185,66908.0,66907.0,1.88151989]
[1718129862521,0.00085,66908.0,66907.0,1.86751989]
[1718129862730,0.00185,66908.0,66907.0,1.88151989]
[1718129862947,0.00018042,66912.0,66911.0,1.09309802]
[1718129863169,0.00018042,66912.0,66911.0,1.89081795]
[1718129864080,0.00018042,66912.0,66911.0,1.79081795]
[1718129864289,0.29879,66937.0,66925.0,0.56734]
[1718129864519,0.14958837,66931.0,66925.0,0.98915993]
[1718129864964,0.14958837,66931.0,66925.0,0.99915993]
[1718129865413,0.00018037,66931.0,66925.0,0.82165993]
[1718129865628,0.00018037,66931.0,66925.0,0.99915993]
[1718129865855,0.00018037,66931.0,66925.0,1.79205993]
[1718129866120,0.00018037,66931.0,66930.0,1.37789802]
[1718129866347,0.00018,66961.0,66948.0,1.54862944]
[1718129866548,0.00018,66961.0,66948.0,1.91908695]
[1718129867266,0.149363,66951.0,66948.0,1.25805802]
[1718129867447,0.149363,66951.0,66948.0,1.27805802]
[1718129868139,0.149363,66951.0,66948.0,1.42237795]
[1718129868413,0.00018,66961.0,66948.0,1.68371795]
[1718129868889,0.00018,66961.0,66948.0,1.66971795]
[1718129869103,0.00018,66961.0,66948.0,0.75409802]
[1718129869314,0.00018,66961.0,66948.0,0.77409802]
[1718129869751,0.039,66959.0,66948.0,0.29275802]
[1718129870005,0.157917,66949.0,66948.0,0.30375802]
[1718129870219,0.157917,66949.0,66948.0,0.31775802]
[1718129870425,0.157917,66949.0,66948.0,0.30675802]
[1718129870637,0.157917,66949.0,66948.0,0.50675802]
[1718129870850,0.157917,66949.0,66948.0,0.51675802]
[1718129871076,0.157917,66949.0,66948.0,0.52675802]
[1718129871539,0.157917,66949.0,66948.0,0.52275802]
[1718129871774,0.1737087,66949.0,66948.0,0.21375802]
[1718129872016,0.57973693,66949.0,66948.0,0.021]
[1718129872267,1.17720493,66949.0,66948.0,0.021]
[1718129872469,1.17720493,66949.0,66932.0,0.1]
[1718129872470,0.149403,66933.0,66932.0,0.1]
[1718129872687,0.249403,66933.0,66932.0,0.1]
[1718129873864,0.149407,66931.0,66930.0,0.19275802]
[1718129874133,0.54313493,66931.0,66926.0,0.1]
[1718129874359,0.1775,66928.0,66922.0,0.19275802]
[1718129874578,0.149425,66923.0,66922.0,0.19275802]
[1718129874800,0.149438,66917.0,66916.0,0.1]
[1718129875051,0.149438,66917.0,66916.0,0.17215996]
[1718129875276,0.249438,66917.0,66916.0,0.17215996]
[1718129876618,0.250438,66917.0,66916.0,0.18215996]
[1718129876834,0.251438,66917.0,66916.0,0.19215996]
[1718129877279,0.251438,66917.0,66916.0,0.39215996]
[1718129877491,0.251438,66917.0,66916.0,0.41215996]
[1718129877762,0.102,66917.0,66916.0,0.51215996]
[1718129877976,0.102,66917.0,66916.0,1.66311989]
[1718129877977,0.002,66917.0,66916.0,1.66311989]
[1718129878430,0.002,66917.0,66916.0,1.67311989]
[1718129878651,0.002,66917.0,66916.0,1.66311989]
[1718129879311,0.002,66917.0,66916.0,1.67311989]
[1718129880677,0.002,66917.0,66916.0,1.82256089]
[1718129880899,0.002,66917.0,66916.0,2.02256089]
[1718129881127,0.002,66917.0,66916.0,1.82256089]
[1718129881354,0.002,66917.0,66916.0,1.65311989]
[1718129881572,0.002,66917.0,66916.0,1.66311989]
[1718129881573,0.001,66917.0,66916.0,1.66311989]
[1718129881823,0.249389,66939.0,66938.0,0.19275802]
[1718129882050,0.149389,66939.0,66938.0,0.09275802]
[1718129882276,0.149389,66939.0,66935.0,0.1]
[1718129882277,0.149396,66936.0,66935.0,0.1]
[1718129882505,0.1,66936.0,66934.0,0.1]
[1718129882721,0.1,66936.0,66930.0,0.1]
[1718129882722,0.149407,66931.0,66930.0,0.1]
[1718129882932,0.249407,66931.0,66930.0,0.19275802]
[1718129883592,0.249407,66931.0,66930.0,0.51275802]
[1718129884021,0.1,66931.0,66930.0,0.51275802]
[1718129884199,0.189389,66939.0,66938.0,0.09275802]
[1718129884457,0.289389,66939.0,66938.0,0.09275802]
[1718129884875,0.249389,66939.0,66938.0,0.29275802]
[1718129885528,0.249389,66939.0,66938.0,0.09275802]
[1718129885960,0.249389,66939.0,66938.0,0.29275802]
[1718129888959,0.249389,66939.0,66938.0,0.31275802]
[1718129889226,0.249389,66939.0,66938.0,0.41275802]
[1718129889913,0.249389,66939.0,66938.0,0.39275802]
[1718129890352,0.249389,66939.0,66938.0,0.19275802]
[1718129890584,0.249389,66939.0,66938.0,0.39275802]
[1718129890802,0.249389,66939.0,66938.0,0.09275802]
[1718129891311,0.249389,66939.0,66938.0,0.29275802]
[1718129892741,0.249389,66939.0,66938.0,0.09275802]
[1718129893189,0.548168,66939.0,66938.0,0.09275802]
[1718129895130,0.249389,66939.0,66938.0,0.41275802]
[1718129895990,0.249389,66939.0,66938.0,0.39275802]
[1718129897088,0.249389,66939.0,66938.0,0.19275802]
[1718129897302,0.19210646,66939.0,66938.0,0.58491798]
[1718129897522,0.149389,66939.0,66938.0,0.58491798]
[1718129897988,0.149389,66939.0,66938.0,1.35461798]
[1718129898438,0.149389,66939.0,66938.0,0.26491798]
[1718129898674,0.149389,66939.0,66938.0,0.30675802]
[1718129898675,0.249389,66939.0,66938.0,0.30675802]
[1718129898884,0.5631069,66939.0,66938.0,0.20675802]
[1718129899149,0.548168,66939.0,66938.0,0.20675802]
[1718129899595,0.548168,66939.0,66938.0,0.21675802]
[1718129899800,0.548168,66939.0,66938.0,0.20275802]
[1718129900423,0.6029848,66939.0,66938.0,0.19275802]
[1718129900715,0.6029848,66939.0,66938.0,0.19975802]
[1718129901425,0.548168,66939.0,66938.0,0.20375802]
[1718129901699,0.548168,66939.0,66938.0,0.19975802]
[1718129902172,0.548168,66939.0,66938.0,0.42675802]
[1718129902398,0.548168,66939.0,66938.0,0.40675802]
[1718129903784,0.74730473,66939.0,66938.0,0.014]